[Event "GER-ch Youth U10W 2020"]
[Site "Willingen"]
[Date "2020.10.30"]
[Round "6.2"]
[White "Bauer, Laura Sophie"]
[Black "Hoffmann, Svenja"]
[Result "0-1"]
[ECO "C47"]
[WhiteElo "1287"]
[BlackElo "1219"]
[Annotator "NA RC"]
[PlyCount "88"]
[EventDate "2020.10.27"]
[EventType "swiss"]
[EventRounds "7"]
[EventCountry "GER"]
[SourceTitle "playchess.com"]
[Source "ChessBase"]
[SourceQuality "1"]
[TimeControl "40/4500+30:900+30"]

1. e4 {[%emt 0:00:00]} e5 {[%emt 0:00:00]} 2. Nf3 {[%emt 0:00:00]} Nc6 {[%emt 0:00:07]} 3. Nc3 {[%emt 0:00:00]} Nf6 {[%emt 0:00:44]} 4. g3 {[%emt 0:00:02]} Bb4 {[%emt 0:02:13]} 5. Bg2 {[%emt 0:01:04]} d6 {[%emt 0:03:14]} 6. a3 {[%emt 0:00:29]} Bc5 {[%emt 0:01:32]} 7. O-O {[%emt 0:01:08]} Be6 {[%emt 0:01:39]} 8. d3 {[%emt 0:00:55]} Qd7 {[%emt 0:02:24]} 9. Ng5 {[%emt 0:02:11]} Bg4 {[%emt 0:01:28]} 10. Nf3 {[%emt 0:02:08]} h6 {[%emt 0:00:23]} 11. Na4 {[%emt 0:02:26]} Bb6 {[%emt 0:02:10]} 12. Nxb6 {[%emt 0:00:17]} axb6 {[%emt 0:00:14]} 13. Be3 {[%emt 0:02:44]} d5 {[%emt 0:03:46]} 14. Qe1 {[%emt 0:09:42]} Bh3 {[%emt 0:05:38]} 15. exd5 {[%emt 0:06:12]} Nxd5 {[%emt 0:01:10]} 16. Bd2 {[%emt 0:06:34]} f6 {[%emt 0:00:48]} 17. Qe4 {[%emt 0:02:24]} O-O-O {[%emt 0:01:34]} 18. Rfe1 {[%emt 0:02:13]} Bxg2 {[%emt 0:04:42]} 19. Kxg2 {[%emt 0:01:10]} f5 {[%emt 0:01:56]} 20. Qa4 {[%emt 0:03:47]} Kb8 {[%emt 0:00:30]} 21. Qb3 {[%emt 0:05:17]} Rhe8 {[%emt 0:02:37]} 22. Qc4 {[%emt 0:05:10]} f4 {[%emt 0:02:32]} 23. a4 {[%emt 0:02:05]} g5 {[%emt 0:01:34]} 24. a5 {[%emt 0:01:15]} g4 {[%emt 0:00:38]} 25. Nh4 {[%emt 0:00:31]} f3+ {[%emt 0:01:51]} 26. Kh1 {[%emt 0:02:21]} Nd4 {[%emt 0:02:09]} 27. a6 {[%emt 0:02:42]} Nf5 {[%emt 0:02:01]} 28. axb7 {[%emt 0:01:36]} Kxb7 {[%emt 0:00:35]} 29. Ra3 {[%emt 0:01:39]} Nxh4 {[%emt 0:01:29]} 30. gxh4 {[%emt 0:00:54]} g3 {[%emt 0:02:54]} 31. Qa6+ {[%emt 0:04:26]} Kc6 {[%emt 0:00:14]} 32. c4 {[%emt 0:02:38]} Qh3 {[%emt 0:01:46]} 33. cxd5+ {[%emt 0:02:04]} Rxd5 {[%emt 0:00:13]} 34. Rc1+ {[%emt 0:01:26]} Kd6 {[%emt 0:00:17]} 35. Bb4+ {[%emt 0:00:50]} Kd7 {[%emt 0:00:22]} 36. Rxc7+ {[%emt 0:01:36]} Kxc7 {[%emt 0:00:21]} 37. Qa7+ {[%emt 0:01:57]} Kc6 {[%emt 0:01:02]} 38. Qa4+ {[%emt 0:04:03]} Kc7 {[%emt 0:01:00]} 39. Qa7+ {[%emt 0:01:44]} Kc6 {[%emt 0:01:00]} 40. Qa4+ {[%emt 0:00:39]} Rb5 {[%emt 0:00:34]} 41. Rc3+ {[%emt 0:15:13]} Kb7 {[%emt 0:15:23]} 42. Rc7+ {[%emt 0:01:25]} Kxc7 {[%emt 0:00:11]} 43. Bd6+ {[%emt 0:00:49]} Kxd6 {[%emt 0:00:11]} 44. Qa3+ {[%emt 0:00:16]} Rc5 {[%emt 0:00:09]} 0-1

[Event "GER-ch Youth U10W 2020"]
[Site "Willingen"]
[Date "2020.10.30"]
[Round "6.3"]
[White "Woiteck, Sophia"]
[Black "Trunz, Tamila"]
[Result "0-1"]
[ECO "D00"]
[WhiteElo "1065"]
[BlackElo "1379"]
[Annotator "NA RC"]
[PlyCount "98"]
[EventDate "2020.10.27"]
[EventType "swiss"]
[EventRounds "7"]
[EventCountry "GER"]
[SourceTitle "playchess.com"]
[Source "ChessBase"]
[SourceQuality "1"]
[TimeControl "40/4500+30:900+30"]

1. d4 {[%emt 0:00:00]} d5 {[%emt 0:00:00]} 2. Bf4 {[%emt 0:00:00]} Nf6 {[%emt 0:00:00]} 3. e3 {[%emt 0:00:00]} c6 {[%emt 0:00:16]} 4. Nf3 {[%emt 0:00:13]} Bf5 {[%emt 0:01:03]} 5. c3 {[%emt 0:03:27]} h6 {[%emt 0:00:44]} 6. h3 {[%emt 0:00:41]} Nbd7 {[%emt 0:00:47]} 7. Bd3 {[%emt 0:00:44]} Bxd3 {[%emt 0:00:42]} 8. Qxd3 {[%emt 0:00:13]} e6 {[%emt 0:00:24]} 9. Nbd2 {[%emt 0:00:38]} Be7 {[%emt 0:00:40]} 10. e4 {[%emt 0:05:06]} dxe4 {[%emt 0:01:29]} 11. Nxe4 {[%emt 0:00:32]} O-O {[%emt 0:02:51]} 12. O-O {[%emt 0:10:22]} Rc8 {[%emt 0:06:18]} 13. Nd6 {[%emt 0:23:34]} Bxd6 {[%emt 0:02:38]} 14. Bxd6 {[%emt 0:00:24]} Re8 {[%emt 0:00:35]} 15. Ne5 {[%emt 0:06:48]} c5 {[%emt 0:03:12]} 16. Nxd7 {[%emt 0:00:44]} Qxd7 {[%emt 0:00:33]} 17. Be5 {[%emt 0:01:17]} Nh7 {[%emt 0:01:13]} 18. Rfe1 {[%emt 0:01:50]} f6 {[%emt 0:00:28]} 19. Bh2 {[%emt 0:00:51]} b5 {[%emt 0:02:06]} 20. Rad1 {[%emt 0:02:09]} c4 {[%emt 0:00:58]} 21. Qg6 {[%emt 0:00:40]} a5 {[%emt 0:05:53]} 22. Re3 {[%emt 0:02:12]} b4 {[%emt 0:03:59]} 23. Bf4 {[%emt 0:01:51]} Ng5 {[%emt 0:04:49]} 24. h4 {[%emt 0:00:31]} Nf7 {[%emt 0:04:44]} 25. Rde1 {[%emt 0:04:12]} Rc6 {[%emt 0:10:38]} 26. Rg3 {[%emt 0:00:36]} Nd6 {[%emt 0:04:48]} 27. Bxh6 Nf5 {[%emt 0:01:25]} 28. Rg4 {[%emt 0:02:24]} Nxh6 {[%emt 0:02:46]} 29. Qxh6 {[%emt 0:00:12]} e5 {[%emt 0:01:50]} 30. Qg6 {[%emt 0:00:51]} f5 {[%emt 0:02:04]} 31. Qg5 {[%emt 0:02:40]} fxg4 {[%emt 0:00:38]} 32. h5 {[%emt 0:01:04]} exd4 33. Rxe8+ {[%emt 0:02:02]} Qxe8 {[%emt 0:02:31]} 34. Qxa5 {[%emt 0:00:38]} bxc3 {[%emt 0:01:22]} 35. Qd5+ {[%emt 0:01:04]} Qe6 {[%emt 0:00:51]} 36. Qxd4 {[%emt 0:00:33]} cxb2 {[%emt 0:00:41]} 37. Qxb2 {[%emt 0:00:50]} c3 {[%emt 0:00:10]} 38. Qc2 {[%emt 0:00:56]} Qe1+ {[%emt 0:02:08]} 39. Kh2 {[%emt 0:00:15]} Qd2 {[%emt 0:01:05]} 40. Qb3+ {[%emt 0:00:14]} Kh7 {[%emt 0:00:23]} 41. Qb5 {[%emt 0:15:41]} Qd6+ {[%emt 0:16:11]} 42. g3 {[%emt 0:00:22]} c2 {[%emt 0:00:42]} 43. Qf5+ {[%emt 0:00:24]} Kg8 {[%emt 0:01:09]} 44. h6 {[%emt 0:00:14]} Qxh6+ {[%emt 0:00:26]} 45. Kg2 {[%emt 0:00:43]} c1=Q {[%emt 0:00:55]} 46. Qd5+ {[%emt 0:00:12]} Kh7 {[%emt 0:00:20]} 47. Qe4+ {[%emt 0:00:46]} Rg6 {[%emt 0:00:56]} 48. f4 {[%emt 0:00:32]} Qhh1+ {[%emt 0:00:59]} 49. Kf2 {[%emt 0:00:15]} Qhf1# {[%emt 0:00:23]} 0-1

[Event "GER-ch Youth U10W 2020"]
[Site "Willingen"]
[Date "2020.10.30"]
[Round "6.4"]
[White "Schube, Theresa"]
[Black "Kutz, Ida Klara"]
[Result "0-1"]
[ECO "B40"]
[WhiteElo "1131"]
[BlackElo "997"]
[Annotator "NA RC"]
[PlyCount "76"]
[EventDate "2020.10.27"]
[EventType "swiss"]
[EventRounds "7"]
[EventCountry "GER"]
[SourceTitle "playchess.com"]
[Source "ChessBase"]
[SourceQuality "1"]
[TimeControl "40/4500+30:900+30"]

1. e4 {[%emt 0:00:00]} c5 {[%emt 0:00:00]} 2. Nf3 {[%emt 0:00:00]} e6 {[%emt 0:00:00]} 3. c3 {[%emt 0:00:02]} d5 {[%emt 0:00:19]} 4. exd5 {[%emt 0:00:22]} exd5 {[%emt 0:00:37]} 5. d4 {[%emt 0:00:18]} cxd4 {[%emt 0:01:11]} 6. cxd4 {[%emt 0:00:26]} Nf6 {[%emt 0:01:02]} 7. Nc3 {[%emt 0:00:34]} Be6 {[%emt 0:00:19]} 8. Be2 {[%emt 0:00:40]} Bb4 {[%emt 0:01:14]} 9. Bd2 {[%emt 0:01:09]} O-O {[%emt 0:01:30]} 10. Qb3 {[%emt 0:00:56]} Qb6 {[%emt 0:03:01]} 11. O-O {[%emt 0:01:17]} Nbd7 {[%emt 0:02:14]} 12. Na4 {[%emt 0:01:37]} Qd8 {[%emt 0:04:45]} 13. Bxb4 {[%emt 0:01:08]} Re8 {[%emt 0:00:51]} 14. Nc5 {[%emt 0:01:41]} Nxc5 {[%emt 0:01:34]} 15. Bxc5 {[%emt 0:00:20]} Ne4 {[%emt 0:01:31]} 16. Ba3 {[%emt 0:01:13]} Bg4 {[%emt 0:01:56]} 17. Qd3 {[%emt 0:02:37]} Qf6 {[%emt 0:03:07]} 18. Ne5 {[%emt 0:01:23]} Bxe2 {[%emt 0:04:25]} 19. Qxe2 {[%emt 0:00:24]} Ng5 {[%emt 0:01:29]} 20. Qd2 {[%emt 0:01:11]} Ne6 {[%emt 0:03:20]} 21. Nd7 {[%emt 0:02:19]} Qxd4 {[%emt 0:01:36]} 22. Qxd4 {[%emt 0:00:17]} Nxd4 {[%emt 0:00:56]} 23. Bc5 {[%emt 0:02:52]} Ne2+ {[%emt 0:02:52]} 24. Kh1 {[%emt 0:00:13]} Rad8 {[%emt 0:00:28]} 25. Nf6+ {[%emt 0:01:54]} gxf6 {[%emt 0:02:52]} 26. Bxa7 {[%emt 0:00:20]} d4 {[%emt 0:00:53]} 27. g3 {[%emt 0:01:37]} d3 {[%emt 0:03:27]} 28. Be3 {[%emt 0:01:19]} Nd4 {[%emt 0:01:47]} 29. Bxd4 {[%emt 0:00:39]} Rxd4 {[%emt 0:02:10]} 30. Rfe1 {[%emt 0:02:20]} Re2 {[%emt 0:01:40]} 31. b3 {[%emt 0:04:06]} Rxf2 {[%emt 0:01:01]} 32. Red1 {[%emt 0:05:08]} d2 {[%emt 0:01:03]} 33. Kg1 {[%emt 0:01:00]} Re2 {[%emt 0:02:53]} 34. a3 {[%emt 0:00:34]} Rde4 {[%emt 0:01:03]} 35. Kf1 {[%emt 0:00:31]} Rxh2 {[%emt 0:01:21]} 36. Kg1 {[%emt 0:00:07]} Ree2 {[%emt 0:01:55]} 37. b4 {[%emt 0:01:56]} Rhg2+ {[%emt 0:01:52]} 38. Kf1 {[%emt 0:00:13]} Ref2# {[%emt 0:00:17]} 0-1

[Event "GER-ch Youth U10W 2020"]
[Site "Willingen"]
[Date "2020.10.30"]
[Round "6.5"]
[White "Neininger, Sarah"]
[Black "Will, Elina"]
[Result "1-0"]
[ECO "B01"]
[WhiteElo "1469"]
[BlackElo "1149"]
[Annotator "NA RC"]
[PlyCount "101"]
[EventDate "2020.10.27"]
[EventType "swiss"]
[EventRounds "7"]
[EventCountry "GER"]
[SourceTitle "playchess.com"]
[Source "ChessBase"]
[SourceQuality "1"]
[TimeControl "40/4500+30:900+30"]

1. e4 {[%emt 0:00:00]} d5 {[%emt 0:00:00]} 2. exd5 {[%emt 0:00:00]} Nf6 {[%emt 0:00:00]} 3. d4 {[%emt 0:00:00]} Nxd5 {[%emt 0:00:00]} 4. c4 {[%emt 0:00:00]} Nf6 {[%emt 0:00:00]} 5. Nf3 {[%emt 0:00:19]} e6 {[%emt 0:02:02]} 6. Be3 {[%emt 0:01:01]} b6 {[%emt 0:00:32]} 7. Nc3 {[%emt 0:02:04]} Bb7 {[%emt 0:00:55]} 8. Be2 {[%emt 0:01:04]} Nbd7 {[%emt 0:01:12]} 9. O-O {[%emt 0:01:31]} g6 {[%emt 0:04:41]} 10. Qd2 {[%emt 0:03:04]} Qe7 {[%emt 0:03:19]} 11. Bh6 {[%emt 0:03:00]} O-O-O {[%emt 0:00:27]} 12. Bxf8 {[%emt 0:00:37]} Rhxf8 {[%emt 0:01:10]} 13. d5 {[%emt 0:01:47]} Kb8 {[%emt 0:05:47]} 14. Rad1 {[%emt 0:02:20]} Rfe8 {[%emt 0:02:13]} 15. d6 {[%emt 0:02:10]} Qxd6 {[%emt 0:04:26]} 16. Qxd6 {[%emt 0:00:27]} cxd6 {[%emt 0:00:09]} 17. Rxd6 {[%emt 0:00:23]} Nc5 {[%emt 0:02:05]} 18. Nb5 {[%emt 0:01:37]} Na4 {[%emt 0:01:53]} 19. b3 {[%emt 0:01:05]} Nc5 {[%emt 0:00:13]} 20. Rfd1 {[%emt 0:01:12]} Rxd6 {[%emt 0:02:59]} 21. Nxd6 {[%emt 0:00:42]} Re7 {[%emt 0:01:54]} 22. Nxb7 {[%emt 0:02:07]} Nxb7 {[%emt 0:02:50]} 23. Ne5 {[%emt 0:01:13]} Nc5 {[%emt 0:01:08]} 24. Nc6+ {[%emt 0:00:45]} Kc7 {[%emt 0:01:34]} 25. Nxe7 {[%emt 0:00:22]} a6 {[%emt 0:01:24]} 26. Bf3 {[%emt 0:00:59]} Nce4 {[%emt 0:01:35]} 27. Bxe4 {[%emt 0:00:29]} Nxe4 {[%emt 0:00:15]} 28. Ng8 {[%emt 0:00:31]} Nc3 {[%emt 0:02:58]} 29. Rd2 {[%emt 0:00:35]} Nb1 {[%emt 0:04:16]} 30. Rb2 {[%emt 0:00:36]} Nc3 {[%emt 0:00:16]} 31. Nf6 {[%emt 0:00:54]} b5 {[%emt 0:03:01]} 32. cxb5 {[%emt 0:00:36]} axb5 {[%emt 0:00:33]} 33. Rc2 {[%emt 0:00:24]} b4 34. a3 Kb6 {[%emt 0:05:34]} 35. axb4 {[%emt 0:01:52]} Nd5 {[%emt 0:00:26]} 36. Nxd5+ {[%emt 0:00:19]} exd5 {[%emt 0:00:15]} 37. Kf1 {[%emt 0:00:18]} f5 {[%emt 0:02:49]} 38. Ke2 {[%emt 0:00:16]} d4 {[%emt 0:00:49]} 39. Kd3 {[%emt 0:00:13]} h5 {[%emt 0:00:56]} 40. Kxd4 {[%emt 0:00:30]} h4 {[%emt 0:00:55]} 41. Kd5 {[%emt 0:15:14]} Kb7 {[%emt 0:15:33]} 42. b5 {[%emt 0:00:16]} Kb6 {[%emt 0:01:45]} 43. b4 {[%emt 0:00:26]} Kxb5 {[%emt 0:01:02]} 44. Kd4 {[%emt 0:00:19]} Kxb4 {[%emt 0:01:03]} 45. Rb2+ {[%emt 0:00:11]} Ka3 {[%emt 0:00:16]} 46. Rb8 {[%emt 0:00:14]} Ka4 {[%emt 0:00:27]} 47. Kc5 {[%emt 0:00:10]} Ka3 {[%emt 0:00:25]} 48. Kc4 {[%emt 0:00:04]} Ka2 {[%emt 0:00:25]} 49. Kc3 {[%emt 0:00:06]} Ka1 {[%emt 0:00:12]} 50. Kc2 {[%emt 0:00:05]} g5 {[%emt 0:00:33]} 51. Ra8# 1-0

[Event "GER-ch Youth U10W 2020"]
[Site "Willingen"]
[Date "2020.10.30"]
[Round "6.6"]
[White "Meier, Viktoria"]
[Black "Strübel, Katharina"]
[Result "1-0"]
[ECO "D00"]
[WhiteElo "1316"]
[BlackElo "1091"]
[Annotator "NA RC"]
[PlyCount "83"]
[EventDate "2020.10.27"]
[EventType "swiss"]
[EventRounds "7"]
[EventCountry "GER"]
[SourceTitle "playchess.com"]
[Source "ChessBase"]
[SourceQuality "1"]
[TimeControl "40/4500+30:900+30"]

1. d4 {[%emt 0:00:00]} d5 {[%emt 0:00:00]} 2. Bf4 {[%emt 0:00:00]} Nf6 {[%emt 0:00:14]} 3. e3 {[%emt 0:00:02]} c5 {[%emt 0:00:16]} 4. c3 {[%emt 0:00:30]} Nc6 {[%emt 0:00:32]} 5. Bd3 {[%emt 0:00:26]} Qb6 {[%emt 0:02:30]} 6. Qb3 {[%emt 0:01:02]} c4 {[%emt 0:02:17]} 7. Qxb6 {[%emt 0:00:24]} axb6 {[%emt 0:00:15]} 8. Bc2 {[%emt 0:00:17]} b5 {[%emt 0:01:56]} 9. b4 {[%emt 0:02:23]} Bd7 {[%emt 0:03:07]} 10. a4 {[%emt 0:00:48]} b6 {[%emt 0:01:51]} 11. Nd2 {[%emt 0:00:37]} e6 {[%emt 0:01:38]} 12. Ngf3 {[%emt 0:01:07]} Be7 {[%emt 0:03:04]} 13. O-O {[%emt 0:01:32]} O-O {[%emt 0:00:55]} 14. axb5 {[%emt 0:00:18]} Na7 {[%emt 0:01:39]} 15. e4 {[%emt 0:02:55]} Bxb5 {[%emt 0:01:26]} 16. Bg5 {[%emt 0:02:38]} Nc6 {[%emt 0:03:26]} 17. Ne5 {[%emt 0:03:05]} h6 {[%emt 0:03:49]} 18. Nxc6 {[%emt 0:01:21]} Bxc6 {[%emt 0:01:40]} 19. exd5 {[%emt 0:01:02]} Nxd5 {[%emt 0:00:20]} 20. Bxe7 {[%emt 0:00:40]} Nxe7 {[%emt 0:00:15]} 21. Nxc4 {[%emt 0:00:53]} Rxa1 {[%emt 0:03:07]} 22. Rxa1 {[%emt 0:01:07]} Nd5 {[%emt 0:04:14]} 23. Be4 {[%emt 0:02:10]} Bb5 {[%emt 0:00:42]} 24. Bxd5 {[%emt 0:00:50]} exd5 {[%emt 0:07:14]} 25. Nxb6 {[%emt 0:01:59]} Bc4 {[%emt 0:01:27]} 26. Nxc4 {[%emt 0:00:33]} dxc4 {[%emt 0:00:20]} 27. Rb1 {[%emt 0:00:06]} Re8 {[%emt 0:00:18]} 28. g3 {[%emt 0:00:09]} Re2 {[%emt 0:00:17]} 29. b5 {[%emt 0:00:23]} Rc2 {[%emt 0:00:34]} 30. b6 {[%emt 0:00:38]} Rxc3 {[%emt 0:00:46]} 31. b7 {[%emt 0:00:07]} Rb3 {[%emt 0:01:08]} 32. Rxb3 {[%emt 0:00:06]} cxb3 {[%emt 0:00:08]} 33. b8=Q+ {[%emt 0:00:24]} Kh7 {[%emt 0:00:06]} 34. d5 {[%emt 0:00:10]} b2 {[%emt 0:00:19]} 35. d6 {[%emt 0:00:04]} b1=Q+ 36. Qxb1+ g6 {[%emt 0:01:03]} 37. d7 {[%emt 0:00:37]} Kg7 {[%emt 0:00:32]} 38. d8=Q {[%emt 0:00:13]} Kh7 {[%emt 0:00:05]} 39. Qb4 {[%emt 0:00:17]} g5 {[%emt 0:00:18]} 40. Qbf8 {[%emt 0:00:29]} Kg6 {[%emt 0:00:16]} 41. Qde7 {[%emt 0:15:32]} g4 {[%emt 0:15:22]} 42. Qfxf7# {[%emt 0:00:11]} 1-0

[Event "GER-ch Youth U10W 2020"]
[Site "Willingen"]
[Date "2020.10.30"]
[Round "6.7"]
[White "Huber, Laura"]
[Black "Zimmermann, Lilly Marie"]
[Result "1-0"]
[ECO "C55"]
[WhiteElo "1249"]
[BlackElo "851"]
[Annotator "NA RC"]
[PlyCount "127"]
[EventDate "2020.10.27"]
[EventType "swiss"]
[EventRounds "7"]
[EventCountry "GER"]
[SourceTitle "playchess.com"]
[Source "ChessBase"]
[SourceQuality "1"]
[TimeControl "40/4500+30:900+30"]

1. e4 {[%emt 0:00:00]} e5 {[%emt 0:00:00]} 2. Nf3 {[%emt 0:00:00]} Nc6 {[%emt 0:00:00]} 3. Bc4 {[%emt 0:00:06]} Nf6 {[%emt 0:01:08]} 4. d3 {[%emt 0:00:47]} h6 {[%emt 0:00:31]} 5. c3 {[%emt 0:03:00]} Bc5 {[%emt 0:00:23]} 6. O-O {[%emt 0:02:11]} d6 {[%emt 0:00:46]} 7. Nbd2 {[%emt 0:00:37]} O-O {[%emt 0:00:25]} 8. h3 {[%emt 0:00:52]} d5 {[%emt 0:01:23]} 9. exd5 {[%emt 0:07:18]} Nxd5 {[%emt 0:00:38]} 10. Re1 {[%emt 0:01:09]} Bd6 {[%emt 0:02:03]} 11. Bxd5 {[%emt 0:01:16]} Qf6 {[%emt 0:01:32]} 12. Ne4 {[%emt 0:08:47]} Qg6 {[%emt 0:01:50]} 13. Ng3 {[%emt 0:01:16]} Ne7 {[%emt 0:02:46]} 14. Bb3 {[%emt 0:15:34]} Nf5 {[%emt 0:01:21]} 15. Nxf5 {[%emt 0:01:58]} Bxf5 {[%emt 0:02:20]} 16. Nh4 {[%emt 0:00:41]} Qf6 {[%emt 0:00:27]} 17. Nxf5 {[%emt 0:00:14]} Qxf5 {[%emt 0:00:25]} 18. Re3 {[%emt 0:02:23]} Bc5 {[%emt 0:00:35]} 19. Rf3 {[%emt 0:01:23]} Qg6 {[%emt 0:00:57]} 20. Rg3 {[%emt 0:01:06]} Qxg3 {[%emt 0:00:59]} 21. d4 {[%emt 0:02:05]} Qg6 {[%emt 0:02:10]} 22. dxc5 {[%emt 0:00:49]} Rad8 {[%emt 0:00:32]} 23. Qf3 {[%emt 0:02:07]} e4 {[%emt 0:01:02]} 24. Qe2 {[%emt 0:03:32]} Rde8 {[%emt 0:00:23]} 25. Be3 {[%emt 0:01:17]} Re5 {[%emt 0:00:45]} 26. Rd1 {[%emt 0:01:59]} Rh5 {[%emt 0:00:15]} 27. Kh2 {[%emt 0:04:44]} b6 {[%emt 0:00:51]} 28. Rd7 {[%emt 0:03:26]} Kh8 {[%emt 0:03:03]} 29. Rxc7 {[%emt 0:04:44]} bxc5 {[%emt 0:01:06]} 30. Bxc5 {[%emt 0:02:44]} Re8 {[%emt 0:00:17]} 31. Bxf7 {[%emt 0:00:18]} Qg5 {[%emt 0:00:48]} 32. Bxh5 {[%emt 0:01:52]} Re5 {[%emt 0:00:43]} 33. Qg4 {[%emt 0:01:57]} Rd5 {[%emt 0:01:07]} 34. Qxg5 {[%emt 0:00:40]} hxg5 {[%emt 0:00:27]} 35. Bg6 {[%emt 0:00:28]} Rd8 {[%emt 0:00:33]} 36. Bd4 {[%emt 0:00:27]} Kg8 {[%emt 0:00:25]} 37. Rxg7+ {[%emt 0:00:14]} Kf8 {[%emt 0:00:27]} 38. Rf7+ {[%emt 0:00:30]} Kg8 {[%emt 0:00:11]} 39. Rh7 {[%emt 0:00:41]} Kf8 {[%emt 0:00:46]} 40. Rh8+ {[%emt 0:00:19]} Ke7 {[%emt 0:00:17]} 41. Rxd8 {[%emt 0:15:02]} Kxd8 {[%emt 0:15:29]} 42. Bxa7 {[%emt 0:00:05]} Kc7 43. Bxe4 Kd6 {[%emt 0:01:06]} 44. Be3 {[%emt 0:00:46]} Ke5 {[%emt 0:00:10]} 45. Bxg5 {[%emt 0:00:19]} Kxe4 {[%emt 0:00:14]} 46. Bf4 {[%emt 0:00:07]} Kxf4 {[%emt 0:00:26]} 47. a4 {[%emt 0:00:07]} Ke5 {[%emt 0:00:09]} 48. a5 {[%emt 0:00:04]} Ke4 {[%emt 0:00:29]} 49. a6 {[%emt 0:00:06]} Kd3 {[%emt 0:00:28]} 50. a7 {[%emt 0:00:27]} Kc2 51. a8=Q Kxb2 {[%emt 0:01:00]} 52. c4 {[%emt 0:00:45]} Kc3 {[%emt 0:00:49]} 53. Qf3+ {[%emt 0:00:07]} Kxc4 {[%emt 0:00:10]} 54. Qe3 {[%emt 0:00:04]} Kd5 {[%emt 0:00:10]} 55. Qf4 {[%emt 0:00:12]} Kc5 {[%emt 0:00:26]} 56. Qd2 {[%emt 0:00:07]} Kb5 {[%emt 0:00:13]} 57. Qc2 {[%emt 0:00:04]} Ka5 {[%emt 0:00:06]} 58. Qb1 {[%emt 0:00:31]} Ka4 {[%emt 0:00:11]} 59. h4 {[%emt 0:00:06]} Ka5 {[%emt 0:00:18]} 60. h5 {[%emt 0:00:02]} Ka6 {[%emt 0:00:22]} 61. h6 {[%emt 0:00:14]} Ka5 {[%emt 0:00:48]} 62. h7 {[%emt 0:00:06]} Ka4 {[%emt 0:00:04]} 63. h8=R {[%emt 0:00:27]} Ka5 {[%emt 0:00:03]} 64. Ra8# 1-0

[Event "GER-ch Youth U10W 2020"]
[Site "Willingen"]
[Date "2020.10.30"]
[Round "6.8"]
[White "Zhou, Jenny"]
[Black "Bakó, Isabella"]
[Result "0-1"]
[ECO "B76"]
[WhiteElo "1131"]
[BlackElo "1153"]
[Annotator "NA RC"]
[PlyCount "154"]
[EventDate "2020.10.27"]
[EventType "swiss"]
[EventRounds "7"]
[EventCountry "GER"]
[SourceTitle "playchess.com"]
[Source "ChessBase"]
[SourceQuality "1"]
[TimeControl "40/4500+30:900+30"]

1. e4 {[%emt 0:00:00]} c5 {[%emt 0:00:00]} 2. Nf3 {[%emt 0:00:00]} d6 {[%emt 0:00:16]} 3. d4 {[%emt 0:00:00]} cxd4 {[%emt 0:00:21]} 4. Nxd4 {[%emt 0:00:00]} Nf6 {[%emt 0:00:46]} 5. Nc3 {[%emt 0:00:38]} g6 {[%emt 0:00:38]} 6. Be3 {[%emt 0:00:17]} Bg7 {[%emt 0:00:43]} 7. f3 {[%emt 0:00:16]} O-O {[%emt 0:00:35]} 8. Qd2 {[%emt 0:00:22]} Nc6 {[%emt 0:00:22]} 9. O-O-O {[%emt 0:01:22]} Nxd4 {[%emt 0:00:15]} 10. Bxd4 {[%emt 0:00:29]} Be6 {[%emt 0:00:27]} 11. Nd5 {[%emt 0:03:31]} Nxd5 {[%emt 0:11:15]} 12. exd5 {[%emt 0:01:06]} Bd7 {[%emt 0:07:15]} 13. h4 {[%emt 0:01:47]} h5 {[%emt 0:02:45]} 14. g4 {[%emt 0:00:43]} hxg4 {[%emt 0:01:49]} 15. h5 {[%emt 0:01:38]} Bf5 {[%emt 0:08:55]} 16. hxg6 {[%emt 0:00:53]} Bxg6 {[%emt 0:00:27]} 17. Bxg7 {[%emt 0:00:43]} Kxg7 {[%emt 0:00:59]} 18. Qh2 {[%emt 0:00:46]} Rh8 {[%emt 0:00:51]} 19. Qg1 {[%emt 0:00:23]} Rxh1 {[%emt 0:01:17]} 20. Qxh1 {[%emt 0:00:12]} Qc7 {[%emt 0:03:13]} 21. Bd3 {[%emt 0:00:40]} Bxd3 {[%emt 0:03:09]} 22. Rxd3 {[%emt 0:00:10]} Rh8 {[%emt 0:01:01]} 23. Qg1 {[%emt 0:00:21]} Kf8 {[%emt 0:01:38]} 24. fxg4 {[%emt 0:00:46]} Rg8 {[%emt 0:03:32]} 25. Rc3 {[%emt 0:01:30]} Qd7 {[%emt 0:01:44]} 26. Qd4 {[%emt 0:02:28]} Qxg4 {[%emt 0:04:09]} 27. Qxa7 {[%emt 0:04:30]} Qg1+ {[%emt 0:02:03]} 28. Qxg1 {[%emt 0:00:14]} Rxg1+ {[%emt 0:00:28]} 29. Kd2 {[%emt 0:00:05]} Rg5 {[%emt 0:00:43]} 30. Rc8+ {[%emt 0:00:24]} Kg7 {[%emt 0:00:36]} 31. c4 {[%emt 0:00:10]} Kf6 {[%emt 0:00:31]} 32. a4 {[%emt 0:00:23]} Ke5 {[%emt 0:01:14]} 33. Rc7 {[%emt 0:01:33]} Kd4 {[%emt 0:01:33]} 34. Kc2 {[%emt 0:00:23]} Rg3 {[%emt 0:02:55]} 35. Rxb7 {[%emt 0:01:03]} Kxc4 {[%emt 0:01:42]} 36. b3+ {[%emt 0:00:06]} Kxd5 {[%emt 0:00:23]} 37. a5 {[%emt 0:00:04]} Kc6 {[%emt 0:02:20]} 38. a6 {[%emt 0:00:29]} Rg8 {[%emt 0:02:17]} 39. b4 {[%emt 0:00:51]} Rg5 {[%emt 0:01:26]} 40. b5+ {[%emt 0:01:10]} Kc5 {[%emt 0:01:35]} 41. Rc7+ {[%emt 0:16:29]} Kxb5 {[%emt 0:15:43]} 42. a7 {[%emt 0:00:13]} Rg2+ {[%emt 0:00:50]} 43. Kb3 {[%emt 0:00:27]} Rg8 {[%emt 0:01:12]} 44. Rb7+ {[%emt 0:00:33]} Ka6 {[%emt 0:00:32]} 45. Rb8 {[%emt 0:00:23]} Rg3+ {[%emt 0:00:26]} 46. Kc4 {[%emt 0:02:25]} Kxa7 47. Re8 Re3 {[%emt 0:02:43]} 48. Kb5 {[%emt 0:01:16]} Kb7 {[%emt 0:00:37]} 49. Rd8 {[%emt 0:00:32]} Kc7 {[%emt 0:00:28]} 50. Rf8 {[%emt 0:00:26]} Rf3 {[%emt 0:00:50]} 51. Re8 {[%emt 0:01:33]} Kd7 {[%emt 0:00:46]} 52. Ra8 {[%emt 0:00:21]} Rc3 {[%emt 0:01:54]} 53. Ra7+ {[%emt 0:00:15]} Rc7 {[%emt 0:01:27]} 54. Ra4 {[%emt 0:00:39]} Rc5+ {[%emt 0:01:35]} 55. Kb4 {[%emt 0:00:59]} Rf5 {[%emt 0:00:56]} 56. Ra7+ {[%emt 0:00:22]} Ke6 {[%emt 0:00:15]} 57. Ra1 {[%emt 0:00:24]} Rd5 {[%emt 0:00:36]} 58. Re1+ {[%emt 0:00:14]} Re5 {[%emt 0:00:23]} 59. Ra1 {[%emt 0:00:16]} f5 {[%emt 0:00:31]} 60. Kc4 {[%emt 0:00:12]} f4 {[%emt 0:00:57]} 61. Rf1 {[%emt 0:00:27]} Rf5 {[%emt 0:01:02]} 62. Re1+ {[%emt 0:00:03]} Re5 {[%emt 0:01:11]} 63. Rf1 {[%emt 0:00:17]} Re4+ {[%emt 0:00:26]} 64. Kd3 {[%emt 0:00:07]} d5 {[%emt 0:00:12]} 65. Rh1 {[%emt 0:00:19]} f3 {[%emt 0:01:04]} 66. Rh6+ {[%emt 0:01:10]} Kd7 {[%emt 0:01:12]} 67. Rh3 {[%emt 0:00:06]} Rf4 {[%emt 0:00:51]} 68. Rh1 {[%emt 0:00:34]} e5 {[%emt 0:05:36]} 69. Rh7+ {[%emt 0:00:14]} Ke6 {[%emt 0:01:22]} 70. Rh6+ {[%emt 0:00:20]} Rf6 {[%emt 0:00:13]} 71. Rh1 {[%emt 0:00:43]} e4+ {[%emt 0:00:00]} 72. Kc3 {[%emt 0:00:00]} Ke5 {[%emt 0:00:00]} 73. Rh5+ {[%emt 0:00:00]} Rf5 {[%emt 0:00:00]} 74. Rxf5+ {[%emt 0:00:00]} Kxf5 {[%emt 0:00:00]} 75. Kd2 {[%emt 0:00:00]} Kf4 {[%emt 0:00:00]} 76. Ke1 {[%emt 0:00:00]} Ke3 {[%emt 0:00:00]} 77. Kf1 {[%emt 0:00:00]} f2 {[%emt 0:00:00]} 0-1